fUSD/lending_fUSD_20260227
["ID","MTS","AMOUNT","RATE_DAILY","PERIOD"]
[406838205,1772217739484,540.16514246,7.952e-05,2]
[406838206,1772217739516,540.16514246,7.952e-05,2]
[406838207,1772217739549,540.16514246,7.952e-05,2]
[406838208,1772217739581,540.16514246,7.952e-05,2]
[406838209,1772217739612,540.16514246,7.952e-05,2]
[406838210,1772217739647,540.16514246,7.952e-05,2]
[406838211,1772217739678,540.16514246,7.952e-05,2]
[406838212,1772217739709,98.74951833,7.952e-05,2]
[406838213,1772217739731,441.41562413,7.952e-05,2]
[406838214,1772217739891,540.16514246,7.952e-05,2]
[406838215,1772217739923,540.16514246,7.952e-05,2]
[406838216,1772217739954,540.16514246,7.952e-05,2]
[406838217,1772217739995,540.16514246,7.952e-05,2]
[406838218,1772217740025,540.16514246,7.952e-05,2]
[406838219,1772217740059,540.16514246,7.952e-05,2]
[406838220,1772217740091,540.16514246,7.952e-05,2]
[406838221,1772217740122,540.16514246,7.952e-05,2]
[406838222,1772217740155,237.27323619,7.952e-05,2]
[406838223,1772217740178,302.89190627,7.952e-05,2]
[406838224,1772217740210,540.16514246,7.952e-05,2]
[406838225,1772217740241,540.16514246,7.952e-05,2]
[406838226,1772217740277,540.16514246,7.952e-05,2]
[406838227,1772217740311,540.16514246,7.952e-05,2]
[406838228,1772217740344,540.16514246,7.952e-05,2]
[406838229,1772217740381,540.16514246,7.952e-05,2]
[406838230,1772217740421,540.16514246,7.952e-05,2]
[406838231,1772217740453,540.16514246,7.952e-05,2]
[406838232,1772217740676,375.79695405,7.952e-05,2]
[406838233,1772217740700,164.36818841,7.952e-05,2]
[406838234,1772217740733,540.16514246,7.952e-05,2]
[406838235,1772217740765,540.16514246,7.952e-05,2]
[406838236,1772217740810,540.16514246,7.952e-05,2]
[406838237,1772217740840,540.16514246,7.952e-05,2]
[406838238,1772217740873,540.16514246,7.952e-05,2]
[406838239,1772217740911,540.16514246,7.952e-05,2]
[406838240,1772217740949,540.16514246,7.952e-05,2]
[406838241,1772217741000,540.16514246,7.952e-05,2]
[406838242,1772217741036,514.32067191,7.952e-05,2]
[406838243,1772217741060,25.84447055,7.952e-05,2]
[406838244,1772217741093,540.16514246,7.952e-05,2]
[406838245,1772217741128,540.16514246,7.952e-05,2]
[406838246,1772217741168,540.16514246,7.952e-05,2]
[406838247,1772217741202,540.16514246,7.952e-05,2]
[406838248,1772217741236,540.16514246,7.952e-05,2]
[406838249,1772217741270,540.16514246,7.952e-05,2]
[406838250,1772217741313,540.16514246,7.952e-05,2]
[406838251,1772217741345,540.16514246,7.952e-05,2]
[406838252,1772217741383,540.16514246,7.952e-05,2]
[406838253,1772217741417,112.67924731,7.952e-05,2]
[406838254,1772217741444,427.48589515,7.952e-05,2]
[406838255,1772217741484,540.16514246,7.952e-05,2]
[406838256,1772217741523,540.16514246,7.952e-05,2]
[406838257,1772217741560,540.16514246,7.952e-05,2]
[406838258,1772217741605,540.16514246,7.952e-05,2]
[406838259,1772217741641,540.16514246,7.952e-05,2]
[406838260,1772217741751,540.16514246,7.952e-05,2]
[406838261,1772217741796,540.16514246,7.952e-05,2]
[406838262,1772217741835,540.16514246,7.952e-05,2]
[406838263,1772217741867,251.20296517,7.952e-05,2]
[406838264,1772217741892,288.96217729,7.952e-05,2]
[406838265,1772217756854,540.16514246,7.952e-05,2]
[406838266,1772217756886,540.16514246,7.952e-05,2]
[406838267,1772217756918,540.16514246,7.952e-05,2]
[406838268,1772217756962,540.16514246,7.952e-05,2]
[406838269,1772217757005,540.16514246,7.952e-05,2]
[406838270,1772217757037,540.16514246,7.952e-05,2]
[406838271,1772217757074,540.16514246,7.952e-05,2]
[406838272,1772217757106,540.16514246,7.952e-05,2]
[406838273,1772217757142,540.16514246,7.952e-05,2]
[406838274,1772217757175,540.16514246,7.952e-05,2]
[406838275,1772217757212,540.16514246,7.952e-05,2]
[406838276,1772217757245,540.16514246,7.952e-05,2]
[406838277,1772217757278,540.16514246,7.952e-05,2]
[406838278,1772217757314,540.16514246,7.952e-05,2]
[406838279,1772217757353,540.16514246,7.952e-05,2]
[406838280,1772217757389,540.16514246,7.952e-05,2]
[406838281,1772217757429,540.16514246,7.952e-05,2]
[406838282,1772217757463,540.16514246,7.952e-05,2]
[406838283,1772217757496,277.03743572,7.952e-05,2]
[406838284,1772217757520,263.12770674,7.952e-05,2]
[406838285,1772217757552,540.16514246,7.952e-05,2]
[406838286,1772217757588,540.16514246,7.952e-05,2]
[406838287,1772217757624,540.16514246,7.952e-05,2]
[406838288,1772217757660,540.16514246,7.952e-05,2]
[406838289,1772217757696,540.16514246,7.952e-05,2]
[406838290,1772217757731,540.16514246,7.952e-05,2]
[406838291,1772217757772,540.16514246,7.952e-05,2]
[406838292,1772217757809,540.16514246,7.952e-05,2]
[406838293,1772217781683,300.0,7.952e-05,2]
[406838294,1772217810526,-4711.04782271,7.953e-05,2]
[406838295,1772217813418,-5000.01,7.953e-05,2]
[406838296,1772217814717,3365.6369,7.853e-05,2]
[406838297,1772217816462,-5000.01,7.953e-05,2]
[406838298,1772217820201,500.0,7.952e-05,2]
[406838299,1772217820235,500.0,7.952e-05,2]
[406838300,1772217820269,500.0,7.952e-05,2]
[406838301,1772217820332,500.0,7.952e-05,2]
[406838302,1772217820364,500.0,7.952e-05,2]
[406838303,1772217820396,223.55664603,7.952e-05,2]
[406838304,1772217820431,500.0,7.952e-05,2]
[406838305,1772217820492,500.0,7.952e-05,2]
[406838306,1772217820559,500.0,7.952e-05,2]
[406838307,1772217821960,163.69072911,7.952e-05,2]
[406838308,1772217823105,500.0,7.952e-05,2]
[406838311,1772217839574,500.0,7.853e-05,2]
[406838312,1772217841493,300.0,7.952e-05,2]
[406838314,1772217856785,500.0,7.952e-05,2]
[406838315,1772217856974,500.0,7.952e-05,2]
[406838316,1772217857320,500.0,7.952e-05,2]
[406838317,1772217857646,500.0,7.952e-05,2]
[406838318,1772217858015,500.0,7.952e-05,2]
[406838319,1772217858433,500.0,7.952e-05,2]
[406838320,1772217858483,600.00000006,7.952e-05,2]
[406838321,1772217870064,500.0,7.952e-05,2]
[406838322,1772217870118,212.7626248,7.952e-05,2]
[406838323,1772217870144,287.2373752,7.952e-05,2]
[406838324,1772217901629,300.0,7.952e-05,2]
[406838325,1772217901772,300.0,7.952e-05,2]
[406838326,1772217901902,150.0,7.952e-05,2]
[406838327,1772217902183,1200.0,7.952e-05,2]
[406838328,1772217903072,300.0,7.952e-05,2]
[406838329,1772217955520,524.83962734,7.952e-05,2]
[406838330,1772217983580,3606.01,7.943e-05,2]
[406838331,1772218022226,3331.92299746,7.853e-05,2]
[406838332,1772218022252,10000.01,7.853e-05,2]
[406838333,1772218022280,10000.01,7.853e-05,2]
[406838334,1772218022305,10000.01,7.853e-05,2]
[406838335,1772218022329,10000.01,7.853e-05,2]
[406838336,1772218022352,10000.01,7.853e-05,2]
[406838337,1772218192866,-400.0,7.8e-05,2]
[406838338,1772218192892,-250.0,7.826e-05,2]
[406838339,1772218192918,-150.0,7.852e-05,2]
[406838340,1772218192943,-300.0,7.852e-05,2]
[406838341,1772218192975,-500.0,7.852e-05,2]
[406838342,1772218193005,-249.18902572,7.852e-05,2]
[406838343,1772218193035,-500.0,7.852e-05,2]
[406838344,1772218193065,-500.0,7.852e-05,2]
[406838345,1772218193095,-500.0,7.852e-05,2]
[406838346,1772218193125,-500.0,7.852e-05,2]
[406838347,1772218193157,-500.0,7.852e-05,2]
[406838348,1772218193188,-500.0,7.852e-05,2]
[406838349,1772218193366,-500.0,7.852e-05,2]
[406838350,1772218201457,1200.0,7.852e-05,2]
[406838351,1772218201597,300.0,7.852e-05,2]
[406838352,1772218204012,216.0,7.853e-05,2]
[406838353,1772218206754,-5000.01,7.853e-05,2]
[406838354,1772218207008,-5000.01,7.853e-05,2]
[406838355,1772218212600,-5000.01,7.853e-05,2]
[406838356,1772218212739,-5000.01,7.853e-05,2]
[406838357,1772218221826,3343.10406552,7.753e-05,2]
[406838365,1772218232105,-1037.25,7.853e-05,2]
[406838367,1772218232162,-7150.644345,7.853e-05,2]
[406838368,1772218232174,-130574.11540031,7.853e-05,2]
[406838369,1772218232186,-1085.84254698,7.853e-05,2]
[406838370,1772218232197,-20565.79701383,7.853e-05,2]
[406838371,1772218232213,-273.719,7.853e-05,2]
[406838372,1772218232267,-960.87056259,7.853e-05,2]
[406838373,1772218232322,-95084.06342849,7.853e-05,2]
[406838374,1772218232334,-43895.1180951,7.853e-05,2]
[406838375,1772218232345,-834.3403945,7.853e-05,2]
[406838376,1772218232355,-157966.35657959,7.853e-05,2]
[406838377,1772218232366,-1701.57105019,7.853e-05,2]
[406838402,1772218238161,-1159.41324796,7.853e-05,2]
[406838403,1772218238173,-3239.94984,7.853e-05,2]
[406838404,1772218238184,-1553.52,7.853e-05,2]
[406838405,1772218238195,-68938.33591995,7.853e-05,2]
[406838406,1772218238207,-69000.00000001,7.853e-05,2]
[406838407,1772218238323,-92349.77366845,7.853e-05,2]
[406838408,1772218238376,-645822.93810102,7.853e-05,2]
[406838409,1772218238388,-476.20248294,7.853e-05,2]
[406838410,1772218238399,-13129.22399004,7.853e-05,2]
[406838513,1772218240311,-865.36045099,7.853e-05,2]
[406838514,1772218240365,-569003.5808846,7.853e-05,2]
[406838515,1772218240376,-250.0,7.878e-05,2]
[406838516,1772218240386,-800.0,7.9e-05,2]
[406838517,1772218240397,-1300.0,8e-05,2]
[406838518,1772218240406,-250.0,8.58e-05,2]
[406838519,1772218240417,-255.0,8.638e-05,2]
[406838520,1772218240429,-249.0,8.638e-05,2]
[406838521,1772218240439,-1680.0,8.638e-05,2]
[406838522,1772218240448,-420.0,8.638e-05,2]
[406838523,1772218240459,-341.16431883,8.639e-05,2]
[406838524,1772218240468,-500.0,8.673e-05,2]
[406838525,1772218240479,-500.0,8.673e-05,2]
[406838526,1772218240489,-500.0,8.673e-05,2]
[406838527,1772218240498,-500.0,8.673e-05,2]
[406838528,1772218240507,-211.0,8.992e-05,2]
[406838529,1772218240516,-156.0,9.01e-05,2]
[406838530,1772218240525,-174.627238,9.026e-05,2]
[406838531,1772218240535,-467.0,9.44e-05,2]
[406838532,1772218240544,-292.0,9.459e-05,2]
[406838533,1772218240553,-1502.0,9.468e-05,2]
[406838534,1772218240562,-243.79640327,9.478e-05,2]
[406838535,1772218240572,-420.0,9.487e-05,2]
[406838536,1772218240581,-433.0,9.501e-05,2]
[406838537,1772218240590,-1612.0,9.501e-05,2]
[406838538,1772218240600,-587.0,9.501e-05,2]
[406838539,1772218240609,-362.0,9.529e-05,2]
[406838540,1772218240618,-269.0,9.548e-05,2]
[406838541,1772218240627,-9999.99,0.0001,2]
[406838542,1772218240637,-17550.49,0.0001,2]
[406838543,1772218240647,-500.0,0.0001,2]
[406838544,1772218240656,-500.0,0.0001,2]
[406838545,1772218240665,-500.0,0.0001,2]
[406838546,1772218240674,-500.0,0.0001,2]
[406838547,1772218240683,-500.0,0.0001,2]
[406838548,1772218240693,-500.0,0.0001,2]
[406838549,1772218240702,-500.0,0.0001,2]
[406838550,1772218240711,-500.0,0.0001,2]
[406838551,1772218240720,-500.0,0.0001,2]
[406838552,1772218240729,-500.0,0.0001,2]
[406838553,1772218240739,-500.0,0.0001,2]
[406838554,1772218240748,-500.0,0.0001,2]
[406838555,1772218240758,-500.0,0.0001,2]
[406838556,1772218240767,-500.0,0.0001,2]
[406838557,1772218240776,-500.0,0.0001,2]
[406838558,1772218240786,-500.0,0.0001,2]
[406838559,1772218240795,-500.0,0.0001,2]
[406838560,1772218240805,-500.0,0.0001,2]
[406838561,1772218240813,-500.0,0.0001,2]
[406838562,1772218240822,-500.0,0.0001,2]
[406838563,1772218240832,-500.0,0.0001,2]
[406838564,1772218240841,-500.0,0.0001,2]
[406838566,1772218240850,-500.0,0.0001,2]
[406838568,1772218240859,-500.0,0.0001,2]
[406838570,1772218240868,-151.0,0.0001,2]
[406838572,1772218240877,-151.0,0.0001,2]
[406838574,1772218240886,-151.0,0.0001,2]
[406838576,1772218240895,-151.0,0.0001,2]
[406838578,1772218240904,-151.0,0.0001,2]
[406838580,1772218240913,-151.0,0.0001,2]
[406838582,1772218240922,-151.0,0.0001,2]
[406838583,1772218240931,-151.0,0.0001,2]
[406838584,1772218240940,-151.0,0.0001,2]
[406838585,1772218240949,-151.0,0.0001,2]
[406838586,1772218240958,-151.0,0.0001,2]
[406838587,1772218240967,-151.0,0.0001,2]
[406838588,1772218240976,-151.0,0.0001,2]
[406838589,1772218240987,-151.0,0.0001,2]
[406838590,1772218240996,-151.0,0.0001,2]
[406838591,1772218241005,-151.0,0.0001,2]
[406838592,1772218241014,-151.0,0.0001,2]
[406838593,1772218241023,-151.0,0.0001,2]
[406838594,1772218241032,-151.0,0.0001,2]
[406838595,1772218241041,-151.0,0.0001,2]
[406838596,1772218241050,-151.0,0.0001,2]
[406838597,1772218241059,-151.0,0.0001,2]
[406838598,1772218241068,-151.0,0.0001,2]
[406838599,1772218241077,-151.0,0.0001,2]
[406838601,1772218241086,-151.0,0.0001,2]
[406838603,1772218241095,-151.0,0.0001,2]
[406838605,1772218241104,-151.0,0.0001,2]
[406838607,1772218241113,-151.0,0.0001,2]
[406838609,1772218241122,-151.0,0.0001,2]
[406838611,1772218241132,-151.0,0.0001,2]
[406838612,1772218241141,-151.0,0.0001,2]
[406838613,1772218241151,-151.0,0.0001,2]
[406838614,1772218241160,-1053.03002661,0.0001,2]
[406838615,1772218241170,-151.0,0.0001,2]
[406838616,1772218241179,-151.0,0.0001,2]
[406838617,1772218241188,-151.0,0.0001,2]
[406838618,1772218241385,-151.0,0.0001,2]
[406838619,1772218241394,-151.0,0.0001,2]
[406838620,1772218241404,-151.0,0.0001,2]
[406838621,1772218241415,-151.0,0.0001,2]
[406838622,1772218241427,-151.0,0.0001,2]
[406838623,1772218241435,-151.0,0.0001,2]
[406838624,1772218241444,-151.0,0.0001,2]
[406838625,1772218241454,-151.0,0.0001,2]
[406838626,1772218241465,-151.0,0.0001,2]
[406838627,1772218241474,-208.0,0.0001,2]
[406838628,1772218241483,-337.0,0.0001,2]
[406838629,1772218241494,-337.0,0.0001,2]
[406838630,1772218241504,-338.83518363,0.0001,2]
[406838631,1772218241513,-500.0,0.0001,2]
[406838632,1772218241522,-245.61450762,0.0001,2]
[406838633,1772218241531,-500.0,0.00010274,2]
[406838634,1772218241540,-500.0,0.000103,2]
[406838635,1772218241550,-500.0,0.000103,2]
[406838636,1772218241559,-500.0,0.000103,2]
[406838637,1772218241568,-500.0,0.000103,2]
[406838638,1772218241578,-699.99,0.000103,2]
[406838639,1772218241588,-500.0,0.000103,2]
[406838640,1772218241598,-500.0,0.000103,2]
[406838641,1772218241607,-977.54963407,0.000103,2]
[406838642,1772218241617,-744.54912065,0.000103,2]
[406838643,1772218241626,-736.56274826,0.000103,2]
[406838644,1772218241635,-500.0,0.000103,2]
[406838645,1772218241644,-500.0,0.000103,2]
[406838646,1772218241654,-500.66048713,0.000103,2]
[406838647,1772218241663,-500.0,0.000103,2]
[406838648,1772218241672,-500.0,0.000103,2]
[406838649,1772218241682,-500.0,0.000103,2]
[406838650,1772218241693,-500.0,0.000103,2]
[406838651,1772218241702,-500.0,0.000103,2]
[406838652,1772218241711,-500.0,0.000103,2]
[406838653,1772218241719,-500.0,0.000103,2]
[406838654,1772218241728,-500.0,0.000103,2]
[406838655,1772218241739,-975.46584779,0.000103,2]
[406838656,1772218241747,-250.0,0.00010306,2]
[406838657,1772218241757,-207.0,0.00010452,2]
[406838658,1772218241766,-299.99,0.00010475,2]
[406838659,1772218241775,-150.99,0.00010475,2]
[406838660,1772218241784,-3715.74,0.00010475,2]
[406838661,1772218241793,-500.0,0.00010548,2]
[406838662,1772218241802,-9999.99,0.00010755,2]
[406838663,1772218241811,-3335.21318919,0.000109,2]
[406838664,1772218241820,-716.0,0.00011063,2]
[406838665,1772218241829,-1321.0,0.00011208,2]
[406838666,1772218241838,-789.0,0.00011231,2]
[406838667,1772218241847,-501.32097426,0.0001289,2]
[406838668,1772218241856,-500.0,0.0001289,2]
[406838669,1772218241865,-500.0,0.0001289,2]
[406838670,1772218241873,-500.0,0.0001289,2]
[406838671,1772218241882,-500.0,0.0001289,2]
[406838672,1772218241891,-500.0,0.0001289,2]
[406838673,1772218241900,-500.0,0.0001289,2]
[406838674,1772218241909,-500.0,0.0001289,2]
[406838675,1772218241917,-500.0,0.0001289,2]
[406838676,1772218241927,-500.0,0.0001289,2]
[406838677,1772218241937,-500.0,0.0001289,2]
[406838678,1772218241945,-500.0,0.0001289,2]
[406838679,1772218241955,-500.0,0.0001289,2]
[406838680,1772218241964,-500.0,0.0001289,2]
[406838681,1772218241973,-869.50668288,0.0001289,2]
[406838682,1772218241983,-795.55896205,0.0001289,2]
[406838683,1772218241993,-500.0,0.0001289,2]
[406838684,1772218242002,-500.0,0.0001289,2]
[406838685,1772218242011,-500.0,0.0001289,2]
[406838686,1772218242020,-500.0,0.0001289,2]
[406838687,1772218242029,-500.0,0.0001289,2]
[406838688,1772218242037,-500.0,0.0001289,2]
[406838689,1772218242046,-500.0,0.0001289,2]
[406838690,1772218242055,-500.0,0.0001289,2]
[406838691,1772218242064,-500.0,0.0001289,2]
[406838692,1772218242073,-500.0,0.0001289,2]
[406838693,1772218242083,-500.0,0.0001289,2]
[406838694,1772218242091,-500.0,0.0001289,2]
[406838695,1772218242100,-500.0,0.0001289,2]
[406838696,1772218242109,-500.0,0.0001289,2]
[406838697,1772218242118,-3335.21318914,0.00013624,2]
[406838698,1772218242127,-308.59204947,0.00013699,2]
[406838699,1772218242137,-500.0,0.00013699,2]
[406838700,1772218242146,-511.0,0.0001489,2]
[406838701,1772218242155,-165.5,0.00016712,2]
[406838702,1772218242164,-5000.0,0.00017808,2]
[406838703,1772218242173,-200.139566,0.00019082,2]
[406838704,1772218242183,-3335.21318914,0.0001947,2]
[406838705,1772218242192,-200.0,0.0002102,2]
[406838706,1772218242204,-463.11,0.00021442,2]
[406838707,1772218242213,-485.65,0.00021442,2]
[406838708,1772218242222,-485.65,0.0002171,2]
[406838709,1772218242231,-463.11,0.00021799,2]
[406838710,1772218242240,-485.65,0.00021978,2]
[406838711,1772218242249,-463.11,0.00022156,2]
[406838712,1772218242258,-485.65,0.00022246,2]
[406838713,1772218242268,-250.0,0.0002229,2]
[406838714,1772218242277,-344.25499231,0.0002229,2]
[406838715,1772218242286,-174.61919141,0.0002229,2]
[406838716,1772218242295,-500.0,0.0002229,2]
[406838717,1772218242304,-500.0,0.0002229,2]
[406838718,1772218242313,-500.0,0.0002229,2]
[406838719,1772218242322,-500.0,0.0002229,2]
[406838720,1772218242331,-500.0,0.0002229,2]
[406838721,1772218242340,-500.0,0.0002229,2]
[406838722,1772218242349,-500.0,0.0002229,2]
[406838723,1772218242357,-500.0,0.0002229,2]
[406838724,1772218242367,-500.0,0.0002229,2]
[406838725,1772218242377,-500.0,0.0002229,2]
[406838726,1772218242386,-500.0,0.0002229,2]
[406838727,1772218242395,-500.0,0.0002229,2]
[406838728,1772218242405,-500.0,0.0002229,2]
[406838729,1772218242418,-500.0,0.0002229,2]
[406838730,1772218242427,-500.0,0.0002229,2]
[406838731,1772218242436,-500.0,0.0002229,2]
[406838732,1772218242445,-500.0,0.0002229,2]
[406838733,1772218242455,-500.0,0.0002229,2]
[406838734,1772218242464,-500.0,0.0002229,2]
[406838735,1772218242474,-500.0,0.0002229,2]
[406838736,1772218242486,-500.0,0.0002229,2]
[406838737,1772218242495,-500.0,0.0002229,2]
[406838738,1772218242504,-500.0,0.0002229,2]
[406838739,1772218242513,-668.65185757,0.0002229,2]
[406838740,1772218242522,-500.0,0.0002229,2]
[406838741,1772218242531,-151.0,0.0002229,2]
[406838742,1772218242540,-151.0,0.0002229,2]
[406838743,1772218242549,-151.0,0.0002229,2]
[406838744,1772218242558,-151.0,0.0002229,2]
[406838745,1772218242567,-151.0,0.0002229,2]
[406838746,1772218242578,-151.0,0.0002229,2]
[406838747,1772218242587,-151.0,0.0002229,2]
[406838748,1772218242596,-151.0,0.0002229,2]
[406838749,1772218242605,-289.73982287,0.0002229,2]
[406838750,1772218242615,-693.3919763,0.00022345,2]
[406838751,1772218242626,-719.04747942,0.000224,2]
[406838752,1772218242635,-745.65223616,0.00022455,2]
[406838753,1772218242644,-773.2413689,0.0002251,2]
[406838754,1772218242654,-463.12,0.00022514,2]
[406838755,1772218242663,-485.66086247,0.00022514,2]
[406838756,1772218242673,-801.85129955,0.00022565,2]
[406838757,1772218242682,-831.51979763,0.0002262,2]
[406838758,1772218242692,-862.28603014,0.00022675,2]
[406838759,1772218242701,-894.19061326,0.0002273,2]
[406838760,1772218242710,-927.27566595,0.00022785,2]
[406838761,1772218242719,-181.08010149,0.00022838,2]
[406838762,1772218242728,-961.58486559,0.0002284,2]
[406838763,1772218242738,-997.16350561,0.00022895,2]
[406838764,1772218242747,-187.78006525,0.00023386,2]
[406838765,1772218242756,-194.72792766,0.00023934,2]
[406838766,1772218242765,-500.0,0.00024335,2]
[406838767,1772218242774,-201.93286099,0.00024482,2]
[406838768,1772218242783,-150.0,0.00024658,2]
[406838769,1772218242793,-159.05,0.00024749,2]
[406838770,1772218242802,-500.0,0.00024904,2]
[406838771,1772218242811,-209.40437684,0.0002503,2]
[406838772,1772218242820,-3335.21318914,0.00025316,2]
[406838773,1772218242829,-5000.0,0.00025331,2]
[406838774,1772218242838,-217.15233878,0.00025578,2]
[406838775,1772218242848,-150.0,0.0002589,2]
[406838776,1772218242857,-500.25,0.00026066,2]
[406838777,1772218242866,-196.95997443,0.00026126,2]
[406838778,1772218242875,-150.0,0.00027185,2]
[406838779,1772218242884,-406.55633752,0.00027397,2]
[406838780,1772218242892,-300.0,0.00027397,2]
[406838781,1772218242901,-150.36,0.00027695,30]
[406838782,1772218242919,-511.0,0.00027912,13]
[406838783,1772218242937,-166.66,0.00028136,2]
[406838784,1772218242948,-2606.0,0.00028274,2]
[406838785,1772218242958,-10067.01,0.00028292,2]
[406838786,1772218242970,-150.0,0.00028544,2]
[406838787,1772218242980,-150.0,0.00028767,120]
[406838788,1772218242990,-261.89220117,0.00028822,120]
[406838789,1772218243000,-2000.0,0.00029,2]
[406838790,1772218243010,-166.66,0.00029065,2]
[406838791,1772218243021,-500.0,0.00029671,2]
[406838792,1772218243031,-200.0,0.00029873,2]
[406838793,1772218243041,-150.0,0.00029971,2]
[406838795,1772218243051,-166.66,0.00029993,2]
[406838796,1772218243060,-500.0,0.0003011,2]
[406838797,1772218243069,-166.66,0.00030922,2]
[406838798,1772218243078,-3335.21318914,0.00031162,2]
[406838799,1772218243087,-150.0,0.0003147,2]
[406838800,1772218243097,-166.66,0.00031851,2]
[406838801,1772218243107,-2000.0,0.000327,2]
[406838802,1772218243116,-166.66,0.0003278,2]
[406838803,1772218243125,-150.36,0.00032832,30]
[406838804,1772218243134,-150.0,0.00033043,2]
[406838805,1772218243143,-777.21,0.000331,14]
[406838807,1772218243152,-849.15,0.000331,14]
[406838809,1772218243162,-654.93,0.000331,14]
[406838811,1772218243171,-1242.82,0.00033346,35]
[406838812,1772218243180,-13908.0,0.00033371,5]
[406838814,1772218243189,-150.0,0.00033465,2]
[406838815,1772218243198,-644.0,0.00034632,30]
[406838816,1772218243207,-1031.0,0.00034632,30]
[406838817,1772218243216,-150.0,0.00034696,2]
[406838818,1772218243226,-1500.0,0.00034795,2]
[406838819,1772218243235,-2690.69188527,0.00035654,31]
[406838821,1772218243246,-2000.0,0.000364,2]
[406838822,1772218243255,-150.0,0.0003643,2]
[406838823,1772218243264,-3335.21318914,0.00037008,2]
[406838824,1772218243273,-159.05,0.00037123,2]
[406838825,1772218243284,-150.36,0.00037969,30]
[406838826,1772218243293,-1188.241027,0.00038239,2]
[406838827,1772218243304,-40000.0,0.0003824,2]
[406838828,1772218243315,-150.0,0.00038252,2]
[406838829,1772218243324,-362.19766811,0.00039099,7]
[406838830,1772218243334,-411.86066783,0.00039235,7]
[406838831,1772218243343,-335.04991627,0.00039886,20]
[406838832,1772218243353,-777.21,0.000399,14]
[406838833,1772218243363,-849.15,0.000399,14]
[406838834,1772218243372,-654.93,0.000399,14]
[406838835,1772218243383,-1078.36665033,0.00039999,30]
[406838836,1772218243393,-122959.69785834,0.0004,120]
[406838837,1772218243403,-650.0,0.0004,120]
[406838838,1772218243415,-350.0,0.00040082,2]
[406838839,1772218243428,-306.73,0.00040098,14]
[406838840,1772218243438,-2000.0,0.000401,2]
[406838841,1772218243448,-150.0,0.00040165,2]
[406838842,1772218243460,-512.00769,0.0004017,120]
[406838843,1772218243469,-512.00769,0.0004017,120]
[406838844,1772218243479,-512.0077,0.0004017,120]
[406838845,1772218243489,-512.00769,0.0004017,120]
[406838846,1772218243498,-512.0077,0.0004017,120]
[406838847,1772218243509,-5000.0,0.00040284,31]
[406838848,1772218243519,-512.00769,0.00040578,120]
[406838849,1772218243529,-350.0,0.00040688,2]
[406838850,1772218243538,-511.0,0.00040934,25]
[406838851,1772218243558,-165.0,0.00041,90]
[406838852,1772218243567,-533.0,0.00041,90]
[406838853,1772218243577,-2002.2,0.00041,60]
[406838854,1772218243586,-170.0,0.00041,90]
[406838855,1772218243596,-844.0,0.00041096,120]
[406838856,1772218243605,-350.0,0.00041134,2]
[406838857,1772218243615,-1038.76447696,0.0004116,50]
[406838858,1772218243625,-1042.97147578,0.0004116,50]
[406838859,1772218243634,-1031.8094906,0.0004116,50]
[406838860,1772218243643,-1107.88063466,0.0004116,50]
[406838861,1772218243653,-1104.80046788,0.0004116,50]
[406838862,1772218243662,-1032.72017062,0.0004116,50]